Cogmind - Beta 16.1 @@@ ROGUE MODE // 2026.04.18 @ 23:19:33 Player: jazzy Result: Destroyed by XQ-DKP(R) with Subdweller Machine Gun Performance ------------- Evolutions (0) 0 Regions Visited (2) 400 Robots Destroyed (21) 105 Value Destroyed (510) 510 Prototype IDs (0) 0 Alien Tech Used (0) 0 Bonus (0) 0 TOTAL SCORE: 1015 Bonus ------- None Cogmind --------- Core Integrity 0/250 Matter 290/300 Energy 100/100 System Corruption 0% Temperature Cool (0) Movement Treading (260) Ox1 Location -10/Subcaves Parts ------- > --- POWER (1) -------- (None) > --- PROPULSION (2) --- Light Treads Spiked Treads > --- UTILITY (2) ------ Medium Storage Unit Makeshift Light Armor Plating > --- WEAPON (2) ------- Subdweller Beam Cannon Battle Cannon > --- INVENTORY (10) --- Ion Engine Aluminum Leg High-capacity Matter Pod (200) Subdweller Optics Subdweller Laser Subdweller Machine Gun Battle Cannon Hammer Peak State ------------ > --- POWER ------------ (None) > --- PROPULSION ------- Light Treads Spiked Treads > --- UTILITY ---------- Medium Storage Unit Makeshift Light Armor Plating > --- WEAPON ----------- Subdweller Beam Cannon Battle Cannon > --- INVENTORY -------- Ion Engine Aluminum Leg High-capacity Matter Pod Subdweller Optics Subdweller Laser Subdweller Machine Gun Battle Cannon Hammer [Rating: 13] Favorites ----------- Power Light Ion Engine Engine Light Ion Engine Propulsion Light Treads Treads Light Treads Leg Aluminum Leg Flight Unit Flight Unit Utility Medium Storage Unit Device Subdweller Optics Storage Medium Storage Unit Processor Machine Analyzer Protection Light Armor Plating Weapon Light Assault Rifle Energy Gun Medium Laser Energy Cannon Subdweller Beam Cannon Ballistic Gun Light Assault Rifle Ballistic Cannon Battle Cannon Impact Weapon Hammer Build | -11 -10 -10 ------- Run | Yrd Mat Sub Slots Evolved . | . . . Power . | . . . Propulsion . | . . . Utility . | . . . Weapon . | . . . Parts Attached 23 | 7 6 10 Power 2 | 1 1 . Engine 2 | 1 1 . Core . | . . . Reactor . | . . . Propulsion 6 | 2 1 3 Treads 3 | . . 3 Leg 2 | 2 . . Wheel . | . . . Hover . | . . . Flight 1 | . 1 . Utility 8 | 2 2 4 Device 3 | 1 . 2 Storage 2 | 1 1 . Processor 1 | . . 1 Hackware . | . . . Protection 2 | . 1 1 Artifact . | . . . Weapon 7 | 2 2 3 Energy Gun 1 | . 1 . Energy Cannon 1 | . . 1 Ballistic Gun 2 | 2 . . Ballistic Cannon 2 | . . 2 Launcher . | . . . Special Weapon . | . . . Impact Weapon 1 | . 1 . Slashing Weapon . | . . . Piercing Weapon . | . . . Special Melee Weapon . | . . . Unidentified Prototypes . | . . . Parts Lost 2 | . 2 . Power 1 | . 1 . Propulsion . | . . . Utility 1 | . 1 . Weapon . | . . . Highest Loss Streak 1 | . 1 . To Critical Strikes . | . . . Average Backups 7 | 3 6 8 Power 1 | . 1 1 Propulsion 1 | . 1 1 Utility 2 | . 1 3 Weapon 2 | . 1 2 Tool/Special . | . . . Unused Backups 6 | . . 6 Power 1 | . . 1 Propulsion . | . . . Utility 3 | . . 3 Weapon 2 | . . 2 Tool/Special . | . . . Average Slot Usage (%) 78 | . 72 84 Engine 3 | . 6 . Treads 14 | . . 27 Leg 8 | . 16 . Device 6 | . 4 7 Storage 12 | . 11 14 Protection 5 | . 4 5 Energy Gun 7 | . 12 3 Energy Cannon 1 | . . 2 Ballistic Gun 8 | . 15 2 Ballistic Cannon 5 | . . 10 Impact Weapon 4 | . . 9 Peak Build Rating 13 | 8 8 13 Average Rating 7 | 6 6 9 On Entrance 4 | . 8 6 Avg Prop Armor Cover (%) 10 | . 9 11 Naked Turns . | . . . Heaviest Build 25 | 10 17 25 Greatest Support 40 | 20 20 40 Greatest Overweight (x) 1 | . 1 1 Average Overweight (x) . | . . . Largest Inventory Capacity 10 | 8 10 10 Average Capacity 9 | 5 9 10 Most Carried 10 | 4 8 10 Average Carried 7 | 3 6 8 Final Capacity 10 | 5 10 10 Final Carried 8 | 4 8 8 Class Distribution -------------------- 100% | Mutant Dominant Class ---------------- Mutant | -10/Materials Mutant | -10/Subcaves Resources | -11 -10 -10 ----------- Run | Yrd Mat Sub Matter Collected 909 | 294 303 312 Remotely . | . . . Salvage Created 653 | 128 374 151 Parts 38 | 10 14 14 Haulers Intercepted 2 | . 2 . Recyclers Shooed 1 | . 1 . Parts Field Recycled . | . . . Retrieved Matter . | . . . Parts Self-Destructed . | . . . Prevented . | . . . Parts Restored . | . . . Kills | -11 -10 -10 ------- Run | Yrd Mat Sub Combat Hostiles Destroyed 16 | . 10 6 Guns 10 | . 10 . Cannons 6 | . . 6 Classes Destroyed 6 | 2 3 1 Tunneler 2 | 2 . . Hauler 2 | . 2 . Recycler 1 | 1 . . Swarmer 5 | . 5 . Grunt 5 | . 5 . Subdweller 6 | . . 6 Best Kill Streak 3 | 3 2 2 Combat Bots Only 2 | . 2 2 Max Kills in Single Turn 2 | 1 2 1 Gunslinging 1 | . 1 . Exploded . | . . . Melee . | . . . Uniques/NPCs Destroyed . | . . . Combat | -11 -10 -10 -------- Run | Yrd Mat Sub Hostile Shots Fired 102 | . 53 49 Missed 28 | . 13 15 Hits 74 | . 40 34 Projectile 74 | . 40 34 Critical Strikes 3 | . 2 1 Damage Taken 1186 | . 449 737 Core 256 | . 189 67 Absorbed by Shields . | . . . Core Remaining (%) 100 | 100 . . Volleys Fired 91 | 12 47 32 Largest 2 | 2 2 2 Hottest 113 | 40 70 113 Shots Fired 166 | 24 94 48 Gun 130 | 24 94 12 Cannon 36 | . . 36 Launcher . | . . . Special . | . . . Kinetic 121 | 24 53 44 Thermal 45 | . 41 4 Explosive . | . . . Electromagnetic . | . . . Robot Hit Streak 21 | 6 12 21 Robot Miss Streak 4 | 2 4 2 Penetration Max . | . . . Secondary Targets 1 | . 1 . Max Gunslinging Chain 1 | . 1 . Shots Hit Robots 109 | 15 57 37 Core Hits 45 | 6 27 12 Critical Kills . | . . . Critical Parts Destroyed 1 | . 1 . Critical Strikes 5 | . 4 1 Burn 3 | . 3 . Destroy 1 | . 1 . Blast 1 | . . 1 Melee Attacks 25 | . 3 22 Impact 25 | . 3 22 Slashing . | . . . Piercing . | . . . Sneak Attacks . | . . . Combat Hostiles . | . . . Follow-up Attacks . | . . . Damage Inflicted 1309 | 118 579 612 Guns 759 | 118 573 68 Cannons 518 | . . 518 Explosions . | . . . Melee 26 | . . 26 Ramming 6 | . 6 . Kinetic 899 | 118 224 557 Thermal 378 | . 349 29 Explosive . | . . . Electromagnetic . | . . . Impact 26 | . . 26 Slashing . | . . . Piercing . | . . . Highest Corruption . | . . . Average Corruption . | . . . Corruption Purged . | . . . Corruption Blocked . | . . . Overload Shots . | . . . Overflow Damage . | . . . Projectiles . | . . . Explosions . | . . . Melee . | . . . Knockbacks 6 | . . 6 Impact . | . . . Kinetic 6 | . . 6 Secondary . | . . . Self-Inflicted Damage 6 | . 6 . Shots . | . . . Rammed . | . . . Targets Rammed . | . . . Kicked . | . . . Crushed . | . . . Highest Temperature 154 | . 154 . Average Temperature 52 | . 52 . Received Heat Transfer 216 | . 180 36 Siege Activations . | . . . Martial Activations . | . . . Shielding Activations . | . . . Robots Disrupted . | . . . Combat Hostiles . | . . . Robots Corrupted . | . . . Combat Hostiles . | . . . Parts Fried . | . . . Impact Corruptions . | . . . Robots Melted . | . . . Combat Hostiles . | . . . Parts Melted 3 | . 3 . Heat Transferred 1295 | . 1258 37 Parts Sabotaged . | . . . Parts Stolen . | . . . Parts Stripped . | . . . Power Chain Reactions . | . . . Alert | -11 -10 -10 ------- Run | Yrd Mat Sub Maximum Alert Level . | . . . Low Security (%) 100 | 100 100 . Level 1 . | . . . Level 2 . | . . . Level 3 . | . . . Level 4 . | . . . Level 5 . | . . . High Security . | . . . Max Security . | . . . Peak Influence 111 | 10 111 . Initial . | . . . Average 21 | . 26 . Influence Increases 328 | 15 313 . Destroy 0b10 Robot/C 200 | . 200 . Destroy 0b10 Robot/NC 25 | 15 10 . Destroy Leader 44 | . 44 . Successful Hack 12 | . 12 . Destroy Structure 2 | . 2 . Lose Combat Pursuer 45 | . 45 . Influence Decreases 328 | 15 295 18 Entered New Map 10 | . . 10 Time Decay 298 | 15 275 8 Lost Part 20 | . 20 . Squads Dispatched 1 | . 1 . Investigation 1 | . 1 . Extermination . | . . . Reinforcement . | . . . Assault . | . . . Garrison . | . . . Intercept . | . . . Searches Triggered . | . . . Construction Impeded . | . . . Haulers Reinforced . | . . . Active Scanning Responses . | . . . Cargo Convoy Interrupts . | . . . Stealth | -11 -10 -10 --------- Run | Yrd Mat Sub Distress Signals 1 | . 1 . Communications Jammed . | . . . Distress Signals . | . . . Times Spotted 27 | . 19 8 Peak Tracking Total 4 | . 4 2 Tactical Retreats 2 | . 2 . Traps | -11 -10 -10 ------- Run | Yrd Mat Sub Traps Triggered 1 | . 1 . Indirectly . | . . . Trap Hack Attempts . | . . . Triggered . | . . . Disarmed . | . . . Reprogrammed . | . . . Reused . | . . . Traps Extracted . | . . . Installed . | . . . Triggered . | . . . Machines | -11 -10 -10 ---------- Run | Yrd Mat Sub Machines Disabled . | . . . Max in Single Turn . | . . . Machines Repaired . | . . . Machines Dismantled . | . . . Machines Sabotaged . | . . . Overloaded Fab Kills . | . . . Hacking | -11 -10 -10 --------- Run | Yrd Mat Sub Machines Accessed 6 | . 6 . Terminals 4 | . 4 . Fabricators . | . . . Repair Stations 1 | . 1 . Recycling Units 1 | . 1 . Scanalyzers . | . . . Garrison Access . | . . . Total Hacks 18 | . 18 . Successful 7 | . 7 . Failed 11 | . 11 . Catastrophic 3 | . 3 . Database Lockouts . | . . . Manual . | . . . Terminals 15 | . 15 . Fabricators . | . . . Repair Stations 2 | . 2 . Recycling Units 1 | . 1 . Scanalyzers . | . . . Garrison Access . | . . . Terminal Hacks 6 | . 6 . Scanalyzer Index 1 | . 1 . Dispatch Records 1 | . 1 . Transport Status 1 | . 1 . Hauler Manifests 1 | . 1 . Registered Components 1 | . 1 . Zone Layout 1 | . 1 . Fabricator Hacks . | . . . Repair Station Hacks . | . . . Recycling Unit Hacks 1 | . 1 . Report Inventory 1 | . 1 . Scanalyzer . | . . . Garrison Access Hacks . | . . . Unauthorized Hacks . | . . . Terminals . | . . . Fabricators . | . . . Repair Stations . | . . . Recycling Units . | . . . Scanalyzers . | . . . Garrison Access . | . . . Data Cores Recovered . | . . . Used . | . . . Hacking Detections 5 | . 5 . Full Trace Events . | . . . Feedback Events . | . . . Feedback Blocked . | . . . Robot Schematics Acquired . | . . . Robots Built . | . . . Authchips . | . . . Time . | . . . Total Robot Build Rating . | . . . Part Schematics Acquired . | . . . Parts Built . | . . . Authchips . | . . . Time . | . . . Total Part Build Rating . | . . . Part Studies Acquired . | . . . Parts Repaired . | . . . Time . | . . . Parts Recycled . | . . . Recycled Matter . | . . . Retrieved Matter . | . . . Retrieved Components . | . . . Parts Scanalyzed . | . . . Part Schematics Acquired . | . . . Parts Damaged . | . . . Bothacking | -11 -10 -10 ------------ Run | Yrd Mat Sub Used RIF Installer . | . . . Robots Hacked . | . . . Non-combat . | . . . Combat . | . . . Robot Hacks Applied . | . . . Relay Couplers Released . | . . . Fabnet Peak Effective % . | . . . Robots Rewired . | . . . Allies Hacked . | . . . Hacks Repelled . | . . . Allies | -11 -10 -10 -------- Run | Yrd Mat Sub Total Allies . | . . . Largest Group . | . . . Highest-Rated Group . | . . . Highest-Rated Ally . | . . . Total Orders . | . . . Ally Attacks . | . . . Total Damage . | . . . Kills . | . . . Allies Corrupted . | . . . Allies Melted . | . . . Intel | -11 -10 -10 ------- Run | Yrd Mat Sub Active Infowar (turns) 1138 | 196 446 496 Optics 408 | . . 408 Terrain 642 | 196 446 . Machine Analysis 88 | . . 88 Robot Analysis Total . | . . . Derelict Logs Recovered 1 | . . 1 Drone Launches . | . . . Drone Recoveries . | . . . Exploration | -11 -10 -10 ------------- Run | Yrd Mat Sub Turns Passed 2984 | 306 1295 1383 Spaces Moved 1306 | 129 499 678 Core 3 | 3 . . Treads 667 | . . 667 Legs 636 | 126 499 11 Wheels . | . . . Hover . | . . . Flight . | . . . Fastest Speed 50 | 50 120 160 Average Speed 167 | 118 173 173 Slowest Speed 260 | 120 190 260 Overloaded Moves . | . . . Propulsion Burnouts . | . . . Robots Hopped . | . . . Potential Cave-ins . | . . . Cave-ins Triggered . | . . . Exploration Rate (%) 37 | 5 68 40 Regions Visited 2 Branch Regions 1 Pre-discovered Areas . | . . . Known Exits Taken . | . . . Unknown Exits Taken 2 | 1 1 . Scrap Searched 8 | . . 8 Spaces Dug 13 | . 1 12 Terrain Destroyed 13 | . 1 12 Melee 13 | . 1 12 Projectile . | . . . AOE . | . . . Terrain Rammed 1 | . 1 . Walls Destroyed . | . . . Machines Disabled . | . . . Actions | -11 -10 -10 --------- Run | Yrd Mat Sub Total 1908 | 261 840 807 Wait 421 | 107 274 40 Move 1304 | 128 498 678 Hop . | . . . Pick Up 15 | 5 5 5 Fast Attach 13 | 6 3 4 Attach 7 | 1 2 4 Detach 10 | 1 2 7 Swap 8 | . 2 6 Drop 13 | 1 3 9 Fire 91 | 12 47 32 Melee 25 | . 3 22 Ram 1 | . 1 . Kick . | . . . Crush . | . . . Escape Stasis . | . . . Rewire . | . . . Trap . | . . . Miscellaneous . | . . . Route ------- -11/Scrapyard -10/Materials (discovered 3 exits: [*Mat] / [*Min] / [*Sub]) -10/Subcaves History --------- Turn | Location | Event 16 | -11/Scrapyard | Discovered new exit (range 16) 307 | -11/Scrapyard | Entered Materials 308 | -10/Materials | Build established: Mutant 672 | -10/Materials | Discovered new exit (range 10) 880 | -10/Materials | Core integrity fell below 50% 1197 | -10/Materials | Discovered new exit (range 9) 1429 | -10/Materials | Discovered new exit (range 12) 1602 | -10/Materials | Entered Subcaves 1603 | -10/Subcaves | Approached by a straggling Scientist 1743 | -10/Subcaves | Shifting Twisted Machinery released Mak. Light Armor Plating 1768 | -10/Subcaves | Shifting Twisted Machinery released Sub. Beam Cannon 2041 | -10/Subcaves | Core integrity fell below 20% 2730 | -10/Subcaves | Disturbed a concealed Subdweller 2797 | -10/Subcaves | Learned Materials emergency access door positions 2985 | -10/Subcaves | Destroyed by XQ-DKP(R) with Subdweller Machine Gun Last Messages --------------- 02761_ Found 34 Matter. 02767_ Dropped Broken Sub. Optics. 02767_ Discarded Machine Analyzer. 02768_ Dropped Lgt. Armor Plating. 02768_ Dropped Utility Shielding. 02769_ Dropped Lgt. Treads. 02769_ Acquired Sub. Optics. 02773_ Acquired Sub. Laser. 02774_ Searching scrap... 02774_ Found Scrap Shield. 02774_ Found Battle Cannon. 02774_ Found 38 Matter. 02775_ Acquired 10 matter. 02784_ Searching scrap... 02784_ Found Sub. Laser. 02784_ Found 45 Matter. 02797_ Acquired derelict log, extracted data. Data stored: Materials emergency access points. 02877_ Sub. Optics shoots sparks and powers down. Map ----- +----------------------------------------------------+ | ?????????????????????????????????????????????? | | ?????????????????????????????????????????????? | | ?????????????????????????????????????????????? | | ?????????????????????????????????????????????? | | ?????????????????????????????????????????????? | | ?????????????????????????????????????????????? | | ?????????????????????????????????????????????? | | ?????????????????????????????????????????????? | | ?????????????????????????????????????????????? | | ????????????????##???????????????????????????? | | ???????????????## #???#####??????????????????? | | ?????????????### #?## #??????????????????? | | ?????????????? ## #??????????????????? | | ???????????????? #??????????????????? | | ?????????????????? #???????????????????? | | ???????????????????? #???????????????????? | | ???????????????? ???# #???????????????????? | | ??????????????? ???# ##???????????????????? | | ??????????????? ???# R##???????????????????? | | ??????????????? ???# ####????????????????? | | ??????????????? ???# R #????????????????? | | ??????????????? #??# ##????????????????? | | ???????????????# ??# # #?????????????????? | | ??????????????? #??### ##????????????????? | | ???????????????# #???# ##???????????????? | | ???????????????# #???# @ #???????????????? | | ??????????????? ###?## ##???????????????? | | ??????????????## #??### ##???????????????? | | ?????????????## #????# ##??????????????? | | ????????????## #???## ##?????????????? | | ????????????# #???# #?????????????? | | ????????????# #???# ##?????????????? | | ????????????# #???### #??????????????? | | ????????????# #?????## #??????????????? | | ??########??# ######## #??????????????? | | ?## "" "##?# ##?????????????? | | ##" "### #?????????????? | | #"% =% %"## ##?????????????? | | # ^%*&###" ## #??????????????? | | " []&!# #" ##### ##??????????????? | | [%%% #= ##???# ##???????????????? | | " ^%#%!# ##???# #????????????????? | | " [%%%[# # ## ####?#####????????????????? | | " !! ## ## #### #??????????????????????? | | =!! "# #??# ##??????????????????????? | | # " "## ### ###?????????????????????? | | # """ " ## ## #?????????????????????? | | ##"" &"## # #?????????????????????? | | ?### ""#### ###?????????????????????? | | ???######?#### ##???????????????????????? | +----------------------------------------------------+ Best States ------------- Heat Dissipation 25 Energy Generation 10 Energy Capacity 125 Matter Stores 300 Matter Capacity 300 Sight Range 21 Terrain Scan Range 16 Terrain Scan Density 10 Armor Coverage 150 Evasion (%) 55 Recoil Reduction 2 Item Schematics ----------------- None Robot Schematics ------------------ None Fabricated ------------ Nothing Repaired ---------- Nothing Studied --------- None Alien Tech Used ----------------- None Achievements -------------- Part-time Excavator Challenges ------------ None Game ------ Seed ShrapnelSingularityExtractor Manual? 0 Play Time 00:42:17 Cumulative 3.4 hours Start 2026.04.18 @ 21:43:09 End 2026.04.18 @ 23:19:33 Sessions 2 Manual Loads 0 Difficulty Rogue Special Mode None Game No. 4 Rogue 4 Adventurer 0 Explorer 0 Win Type - Total 0 Types 0/0/0/0/0/0/0/0/0/0 Lore% 0 Gallery% 7 Achievement% 12 Wizard Run 0 Options --------- Layout 2 ASCII 0 Keyboard 1 Movement Numpad Keybinds 0 Fullscreen 1 Font 24/Swanston Map View 50x44 Zoom Use 0% Tactical HUD 1 Map Filters NONE Filters NONE Steam 1 RUN: 85753932-ebd7-44a5-af7a-9de162da9013